fUSD/lending_fUSD_20240201
["ID","MTS","AMOUNT","RATE_DAILY","PERIOD"]
[313141767,1706799047206,-10840.0,0.0005,120]
[313141768,1706799047219,-3077.6682786,0.0005,120]
[313141769,1706799047231,-666.5382313,0.0005,120]
[313141770,1706799047246,-11314.71318166,0.0005,120]
[313141771,1706799047257,-187926.39300995,0.0005,120]
[313141772,1706799047266,-5000.0,0.0005,120]
[313141773,1706799047275,-851.89608355,0.0005,120]
[313141774,1706799047285,-191.13564502,0.0005,30]
[313141775,1706799047295,-161.33953414,0.0005,30]
[313141776,1706799047304,-5265.0,0.0005,2]
[313141777,1706799047313,-32040.90203069,0.0005,30]
[313141778,1706799047322,-302.59190287,0.0005,4]
[313141779,1706799047332,-155.0,0.0005,2]
[313141780,1706799047341,-679.8022211,0.0005,45]
[313141781,1706799047351,-7342.72817444,0.0005,31]
[313141782,1706799047360,-175.6302382,0.0005,90]
[313141783,1706799047369,-215.43819756,0.0005,4]
[313141784,1706799047378,-155.000001,0.0005,2]
[313141785,1706799047387,-50000.0,0.0005,7]
[313141786,1706799047397,-241.08496746,0.0005,6]
[313141787,1706799047406,-1483426.0,0.0005,120]
[313141788,1706799047415,-2879.67825921,0.0005,45]
[313141789,1706799047425,-10000.0,0.0005,32]
[313141790,1706799047434,-666.0,0.0005,2]
[313141791,1706799047443,-6072.0,0.0005,20]
[313141792,1706799047453,-10000.0,0.0005,45]
[313141793,1706799047462,-200.0,0.0005,27]
[313141794,1706799047471,-4109.4531719,0.0005,30]
[313141795,1706799047481,-500.0,0.0005,24]
[313141796,1706799047490,-1422.0,0.0005,30]
[313141797,1706799047500,-10213.0,0.0005,30]
[313141798,1706799047509,-150.0,0.0005,21]
[313141799,1706799047519,-22641.0,0.0005,11]
[313141800,1706799047532,-320.0,0.0005,60]
[313141801,1706799047542,-263000.0,0.0005,120]
[313141802,1706799047551,-150.0,0.0005,27]
[313141803,1706799047560,-1953.33807633,0.0005,45]
[313141804,1706799047570,-2558.0,0.00050072,30]
[313141805,1706799047579,-476.0,0.00050072,30]
[313141806,1706799047589,-1000.0,0.00050136,30]
[313141807,1706799047599,-500.0,0.00050136,7]
[313141808,1706799047609,-578.12810932,0.00050136,31]
[313141809,1706799047618,-500.0,0.00050136,31]
[313141810,1706799047628,-500.0,0.00050136,31]
[313141811,1706799047637,-500.0,0.00050136,31]
[313141812,1706799047646,-391.93330076,0.00050136,5]
[313141813,1706799047656,-471.3014036,0.00050136,31]
[313141814,1706799047665,-500.0,0.00050136,31]
[313141815,1706799047675,-500.0,0.00050136,31]
[313141816,1706799047684,-500.0,0.00050136,31]
[313141817,1706799047694,-259.87,0.00050136,31]
[313141818,1706799047703,-500.0,0.00050136,31]
[313141819,1706799047712,-500.0,0.00050136,31]
[313141820,1706799047722,-1147.48,0.00050136,31]
[313141821,1706799047731,-500.0,0.00050136,31]
[313141822,1706799047741,-486.26765603,0.00050136,31]
[313141823,1706799047750,-500.0,0.00050136,31]
[313141824,1706799047759,-508.04181396,0.00050136,31]
[313141825,1706799047769,-500.0,0.00050136,31]
[313141826,1706799047778,-500.0,0.00050136,31]
[313141827,1706799047788,-200.0,0.00050174,30]
[313141828,1706799047797,-347000.0,0.0005025,120]
[313141829,1706799047807,-166.99392,0.00050259,4]
[313141830,1706799047816,-250.0,0.00050274,2]
[313141831,1706799047825,-1500.0,0.0005039,2]
[313141832,1706799047834,-976.0,0.0005039,2]
[313141833,1706799047843,-463.97447128,0.000504,2]
[313141834,1706799047852,-2207.02218063,0.00050403,3]
[313141835,1706799047861,-838.83,0.0005041,30]
[313141836,1706799047870,-1000.0,0.0005041,30]
[313141837,1706799047880,-500.0,0.0005041,7]
[313141838,1706799047889,-500.0,0.0005041,31]
[313141839,1706799047899,-270.23757969,0.0005041,31]
[313141840,1706799047907,-500.0,0.0005041,31]
[313141841,1706799047916,-500.0,0.0005041,31]
[313141842,1706799047926,-500.0,0.0005041,31]
[313141843,1706799047936,-500.0,0.0005041,31]
[313141844,1706799047945,-500.0,0.0005041,31]
[313141845,1706799047956,-500.0,0.0005041,31]
[313141846,1706799047965,-1147.48,0.0005041,31]
[313141847,1706799047974,-500.0,0.0005041,31]
[313141848,1706799047983,-500.0,0.0005041,31]
[313141849,1706799047993,-500.0,0.0005041,31]
[313141850,1706799048002,-500.0,0.0005041,31]
[313141851,1706799048011,-17224.9467653,0.00050465,2]
[313141852,1706799048020,-450.5597015,0.00050465,2]
[313141853,1706799048030,-2877.94642494,0.00050474,120]
[313141854,1706799048039,-150.0,0.00050474,7]
[313141855,1706799048048,-920.0,0.00050479,7]
[313141856,1706799048089,-1000000.0,0.000505,120]
[313141857,1706799048099,-1581.57531541,0.000505,30]
[313141858,1706799048110,-500000.0,0.000505,120]
[313141859,1706799048120,-483.0,0.000505,120]
[313141860,1706799048128,-200.0,0.000505,28]
[313141861,1706799048137,-800.0,0.00050516,30]
[313141862,1706799048147,-2558.0,0.00050563,30]
[313141863,1706799048156,-476.0,0.00050563,30]
[313141864,1706799048167,-150.0,0.00050564,7]
[313141865,1706799048177,-282.34113377,0.0005059,47]
[313141866,1706799048187,-1000.0,0.0005059,2]
[313141867,1706799048197,-360.2726,0.0005059,2]
[313141868,1706799048205,-1208.0,0.0005068,30]
[313141869,1706799048214,-265.64,0.0005068,120]
[313141870,1706799048223,-2000.0,0.00050684,120]
[313141871,1706799048232,-276.97151803,0.00050684,30]
[313141872,1706799048241,-500.0,0.00050684,7]
[313141873,1706799048250,-359.5202791,0.00050684,31]
[313141874,1706799048260,-500.0,0.00050684,31]
[313141875,1706799048269,-500.0,0.00050684,31]
[313141876,1706799048278,-500.0,0.00050684,31]
[313141877,1706799048287,-541.35614248,0.00050684,31]
[313141878,1706799048296,-500.0,0.00050684,31]
[313141879,1706799048305,-500.0,0.00050684,31]
[313141880,1706799048315,-1147.48,0.00050684,31]
[313141881,1706799048324,-500.0,0.00050684,31]
[313141882,1706799048332,-500.0,0.00050684,31]
[313141883,1706799048342,-500.0,0.00050684,31]
[313141884,1706799048351,-621.9333488,0.00050684,31]
[313141885,1706799048360,-1888.63,0.00050685,30]
[313141886,1706799048369,-412.35,0.00050685,30]
[313141888,1706799048378,-403.35,0.00050685,30]
[313141890,1706799048387,-403.35,0.00050685,30]
[313141892,1706799048396,-306.56,0.00050685,30]
[313141894,1706799048405,-164244.49,0.00050689,120]
[313141896,1706799048415,-150.5,0.0005069,120]
[313141897,1706799048425,-190008.54864051,0.0005069,120]
[313141900,1706799048438,-12740.29702096,0.0005069,120]
[313141902,1706799048448,-2923.62999489,0.0005069,120]
[313141904,1706799048459,-1303.00219775,0.0005069,120]
[313141906,1706799048472,-3398.20691,0.0005069,120]
[313141915,1706799048559,-1823.71,0.00044999,5]
[313141917,1706799048568,-3744.2065099,0.00049314,2]
[313141919,1706799048577,-202.63807571,0.00049314,4]
[313141921,1706799048586,-26292.29586921,0.0005069,120]
[313141923,1706799048598,-296.30780668,0.0005069,120]
[313141936,1706799048717,-81923.36156,0.0005069,120]
[313141938,1706799048726,-203.38,0.00050709,120]
[313141940,1706799048735,-2619.0,0.00050709,120]
[313141942,1706799048744,-203.0,0.00050709,120]
[313141944,1706799048754,-1732.0,0.00050709,120]
[313141946,1706799048763,-150.0,0.00050714,7]
[313141948,1706799048774,-150.5,0.00050719,120]
[313141950,1706799048783,-2619.0,0.00050719,120]
[313141952,1706799048792,-203.0,0.00050719,120]
[313141954,1706799048802,-1732.0,0.00050719,120]
[313141956,1706799048812,-150.5,0.00050729,120]
[313141958,1706799048821,-159.18,0.00050729,120]
[313141960,1706799048830,-2619.0,0.00050729,120]
[313141961,1706799048839,-203.0,0.00050729,120]
[313141962,1706799048849,-173.71,0.00050729,120]
[313141963,1706799048858,-178.68,0.00050729,120]
[313141965,1706799048867,-1732.0,0.00050729,120]
[313141967,1706799048877,-150.0,0.00050758,7]
[313141969,1706799048886,-150.0,0.00050784,7]
[313141971,1706799048896,-736.0,0.0005079,2]
[313141974,1706799048906,-150.0,0.00050792,7]
[313141976,1706799048914,-1000.0,0.000508,90]
[313141978,1706799048924,-40532.34055425,0.000508,120]
[313141981,1706799048952,-16964.4,0.000508,120]
[313141983,1706799048965,-552.01000076,0.000508,120]
[313141986,1706799048976,-1145.70000001,0.000508,120]
[313142018,1706799087585,1724.2,0.00022567,90]
[313142019,1706799112326,1992.92171907,0.00021848,7]
[313142020,1706799252162,35189.0,0.00022317,2]
[313142021,1706799264860,1958.8,0.00022496,2]
[313142022,1706799273480,166.97,0.00022463,2]
[313142023,1706799287217,23900.0,0.00022004,2]
[313142024,1706799331252,177.26,0.00020086,2]
[313142025,1706799331287,150.0,0.00022004,2]
[313142026,1706799331576,177.26,0.0002235,2]
[313142027,1706799401683,968.2,0.00022004,2]
[313142028,1706799492319,163.79,0.00021962,2]
[313142029,1706799568145,1460.95450688,0.00021848,2]
[313142030,1706799580747,626.41916631,0.00022078,2]
[313142031,1706799588424,150.0,0.00022,2]
[313142032,1706799681540,1512.99,0.00022073,2]
[313142033,1706799694103,558.44,0.00022037,2]
[313142034,1706799725096,209.95,0.00022037,2]
[313142035,1706799733546,160.06,0.00022171,2]
[313142036,1706799733798,160.06,0.00022287,2]
[313142037,1706799734056,160.06,0.00022402,2]
[313142038,1706799735593,2178.05,0.00022218,2]
[313142039,1706799779318,250.0,0.00021944,2]
[313142040,1706799783045,506.61,0.00021944,2]
[313142041,1706799816929,163.73,0.00021944,2]
[313142042,1706799834889,159.53,0.00020026,2]
[313142043,1706799835246,159.53,0.0002229,2]
[313142045,1706799946520,257.94,0.00021932,2]
[313142046,1706800020180,1971.47803149,0.000225,2]
[313142047,1706800053386,155.88404785,0.00022498,2]
[313142048,1706800081079,1000.0,0.00021887,2]
[313142049,1706800179527,1260.82,0.00021882,2]
[313142050,1706800187990,160.06,0.00022046,2]
[313142051,1706800188236,160.06,0.0002221,2]
[313142052,1706800188451,160.06,0.00022375,2]
[313142053,1706800190438,209.95,0.00021938,2]
[313142054,1706800201746,-162.24967733,0.00022508,2]
[313142055,1706800201772,-155.0,0.00022509,2]
[313142056,1706800201803,-539.49430614,0.00022512,2]
[313142057,1706800201833,-160.06,0.00022539,2]
[313142058,1706800201861,-155.88404782,0.00022565,2]
[313142059,1706800201887,-1913.26855323,0.00022587,2]
[313142060,1706800201914,-150.0,0.00022598,2]
[313142061,1706800201943,-150.0,0.00022598,2]
[313142062,1706800201970,-7625.32203702,0.00022599,2]
[313142063,1706800201996,-370.64138861,0.000226,2]
[313142064,1706800202022,-155.88404782,0.00022632,2]
[313142065,1706800202047,-2174.33,0.00022632,2]
[313142066,1706800202073,-6577.38,0.00022632,2]
[313142067,1706800202099,-13223.55,0.00022632,2]
[313142068,1706800202124,-499.99,0.00022633,2]
[313142069,1706800202151,-155.88404782,0.00022699,2]
[313142070,1706800202178,-160.06,0.00022703,2]
[313142071,1706800202205,-999.99,0.00022749,2]
[313142072,1706800202231,-155.88404782,0.00022766,2]
[313142073,1706800202256,-8503.4,0.000228,2]
[313142074,1706800202280,-3100.4642,0.000228,2]
[313142075,1706800202305,-233.68,0.00022831,2]
[313142076,1706800202332,-978.3605,0.00022833,2]
[313142077,1706800202359,-155.88404782,0.00022833,2]
[313142078,1706800202385,-213.49,0.00022863,2]
[313142079,1706800202411,-331.24,0.00022863,2]
[313142080,1706800202687,-160.06,0.00022867,2]
[313142081,1706800202711,-1611.20312233,0.0002289,2]
[313142082,1706800202735,-574.2,0.00022893,2]
[313142083,1706800202759,-54853.14597624,0.000229,2]
[313142097,1706800232217,-1000.0,0.000229,2]
[313142098,1706800232230,-6397.08276945,0.000229,2]
[313142099,1706800232271,-2633.85372416,0.000229,2]
[313142102,1706800238191,-35115.91753015,0.000229,2]
[313142103,1706800238200,-1724.82037533,0.000229,2]
[313142104,1706800238210,-153.85506273,0.000229,2]
[313142105,1706800238219,-5000.0,0.000229,2]
[313142106,1706800238229,-155.88404782,0.000229,2]
[313142107,1706800238238,-2159.97099438,0.000229,2]
[313142108,1706800238248,-4554.58942083,0.000229,2]
[313142109,1706800238257,-429.84697169,0.000229,2]
[313142110,1706800238266,-1129.36453511,0.000229,6]
[313142111,1706800238275,-8826.0200863,0.000229,2]
[313142112,1706800238284,-192.52372814,0.0002299,2]
[313142113,1706800238293,-192.52372814,0.0002299,2]
[313142114,1706800238302,-257.73699881,0.00022998,2]
[313142115,1706800238312,-172.36061,0.00022998,2]
[313142116,1706800238321,-4256.30556535,0.00022998,2]
[313142117,1706800238331,-565.23169648,0.00022998,2]
[313142118,1706800238340,-1468.65478864,0.00022998,2]
[313142119,1706800238350,-198.20919978,0.00022998,2]
[313142120,1706800238359,-298.06507534,0.00022998,2]
[313142121,1706800238369,-4351.24928338,0.00022998,2]
[313142122,1706800238379,-1052.59750047,0.00022998,2]
[313142123,1706800238389,-304.9412878,0.00022998,2]
[313142124,1706800238402,-722.52,0.00022998,2]
[313142125,1706800238412,-768.55606507,0.00022999,2]
[313142126,1706800238421,-5000.19534161,0.00022999,2]
[313142127,1706800238431,-179.39754835,0.00022999,2]
[313142128,1706800238441,-4951.80312421,0.00022999,2]
[313142129,1706800238451,-500.0,0.00022999,2]
[313142130,1706800238645,-500.0,0.00022999,2]
[313142131,1706800238654,-500.0,0.00022999,2]
[313142133,1706800238664,-500.0,0.00022999,2]
[313142135,1706800238677,-500.0,0.00022999,2]
[313142137,1706800238686,-231.87621652,0.00022999,2]
[313142139,1706800238696,-500.0,0.00022999,2]
[313142141,1706800238706,-500.0,0.00022999,2]
[313142142,1706800238716,-500.0,0.00022999,2]
[313142143,1706800238726,-500.0,0.00022999,2]
[313142144,1706800238736,-543.00544915,0.00022999,2]
[313142145,1706800238746,-500.0,0.00022999,2]
[313142146,1706800238755,-500.0,0.00022999,2]
[313142147,1706800238764,-500.0,0.00022999,2]
[313142148,1706800238774,-500.0,0.00022999,2]
[313142149,1706800238783,-460.88427329,0.00022999,2]
[313142150,1706800238792,-500.0,0.00022999,2]
[313142151,1706800238801,-335.29812102,0.00022999,2]
[313142152,1706800238811,-152.96786427,0.00022999,2]
[313142153,1706800238820,-500.0,0.00022999,2]
[313142154,1706800238829,-500.0,0.00022999,2]
[313142155,1706800238839,-500.0,0.00022999,2]
[313142156,1706800238849,-500.0,0.00022999,2]
[313142157,1706800238860,-500.0,0.00022999,2]
[313142158,1706800238870,-500.0,0.00022999,2]
[313142159,1706800238879,-179.02618929,0.00022999,2]
[313142160,1706800238889,-500.0,0.00022999,2]
[313142161,1706800238899,-500.0,0.00022999,2]
[313142162,1706800238908,-500.0,0.00022999,2]
[313142163,1706800238917,-500.0,0.00022999,2]
[313142164,1706800238926,-500.0,0.00022999,2]
[313142165,1706800238939,-500.0,0.00022999,2]
[313142166,1706800238949,-500.0,0.00022999,2]
[313142167,1706800238960,-500.0,0.00022999,2]
[313142168,1706800238969,-500.0,0.00022999,2]
[313142169,1706800238979,-500.0,0.00022999,2]
[313142170,1706800238988,-500.0,0.00022999,2]
[313142171,1706800238998,-500.0,0.00022999,2]
[313142172,1706800239008,-500.0,0.00022999,2]
[313142173,1706800239017,-500.0,0.00022999,2]
[313142174,1706800239028,-500.0,0.00022999,2]
[313142175,1706800239037,-500.0,0.00022999,2]
[313142176,1706800239047,-500.0,0.00022999,2]
[313142177,1706800239057,-500.0,0.00022999,2]
[313142178,1706800239066,-500.0,0.00022999,2]
[313142179,1706800239075,-500.0,0.00022999,2]
[313142180,1706800239085,-500.0,0.00022999,2]
[313142181,1706800239094,-500.0,0.00022999,2]
[313142182,1706800239103,-500.0,0.00022999,2]
[313142183,1706800239113,-573.27171847,0.00022999,2]
[313142184,1706800239123,-500.0,0.00022999,2]
[313142185,1706800239132,-500.0,0.00022999,2]
[313142186,1706800239141,-500.0,0.00022999,2]
[313142187,1706800239151,-500.0,0.00022999,2]
[313142188,1706800239160,-500.0,0.00022999,2]
[313142189,1706800239169,-500.0,0.00022999,2]
[313142190,1706800239178,-500.0,0.00022999,2]
[313142191,1706800239188,-500.0,0.00022999,2]
[313142192,1706800239198,-500.0,0.00022999,2]
[313142193,1706800239210,-500.0,0.00022999,2]
[313142194,1706800239221,-500.0,0.00022999,2]
[313142195,1706800239230,-500.0,0.00022999,2]
[313142196,1706800239240,-500.0,0.00022999,2]
[313142197,1706800239251,-500.0,0.00022999,2]
[313142198,1706800239260,-500.0,0.00022999,2]
[313142199,1706800239269,-500.0,0.00022999,2]
[313142200,1706800239279,-500.0,0.00022999,2]
[313142201,1706800239290,-500.0,0.00022999,2]
[313142202,1706800239300,-250.0,0.00022999,2]
[313142203,1706800239313,-500.0,0.00022999,2]
[313142204,1706800239323,-499.99999999,0.00022999,2]
[313142205,1706800239332,-1803.83290655,0.00023,3]
[313142206,1706800239341,-12022.07768281,0.00023,3]
[313142207,1706800239360,-1888.23826626,0.00023,3]
[313142208,1706800239381,-5261.35766414,0.00023,3]
[313142209,1706800239394,-1002198.96282031,0.00023,3]
[313142210,1706800239403,-4854332.41767215,0.00023,2]
[313142211,1706800239415,-851.18,0.00023,2]
[313142212,1706800239433,-21790.64568081,0.00023,2]
[313142213,1706800239450,-134227.29034709,0.00023,2]
[313142214,1706800239462,-67781.67592913,0.00023,2]
[313142215,1706800239473,-3153.28430224,0.00023,2]
[313142216,1706800239486,-1578.3,0.00023,2]
[313142217,1706800239498,-48864.53917368,0.00023,2]
[313142220,1706800240848,-446.8629856,0.00022998,2]
[313142221,1706800241412,-4001.5,0.00022998,2]
[313142222,1706800241470,-3354.66951514,0.00022998,2]
[313142223,1706800241481,-26445.21734511,0.00023,2]
[313142224,1706800241545,-1009.36561679,0.00023,2]
[313142231,1706800241745,-0.1586531,0.00023,2]
[313142233,1706800241757,-854.8556,0.00023,2]
[313142235,1706800241769,-459.17501739,0.00023,2]
[313142238,1706800241780,-855.1194,0.00023,2]
[313142240,1706800241795,-1922.22297468,0.00023,2]
[313142242,1706800241807,-425.78239385,0.00023,2]
[313142301,1706800243200,-4989.47753319,0.00022998,2]
[313142313,1706800243258,-5567.6305842,0.00022998,2]
[313142316,1706800243268,-4180.33719496,0.00023,2]
[313142337,1706800243477,-4311.66080948,0.00023,2]
[313142338,1706800243490,-4942.51678652,0.00023,2]
[313142339,1706800243501,-1764.67543372,0.00023,2]
[313142340,1706800243512,-3210.98426152,0.00023,2]
[313142341,1706800243536,-20537.17476851,0.00023,2]
[313142357,1706800246233,-178.34454767,0.00022998,2]
[313142359,1706800246243,-25158.80499751,0.00023,2]
[313142364,1706800246284,-34080.39094115,0.00023,2]
[313142365,1706800246296,-1703.6,0.00023,2]
[313142366,1706800246307,-161628.75807103,0.00023,2]
[313142391,1706800246621,-2155.66339702,0.00023,2]
[313142392,1706800246637,-1288.37691941,0.00023,2]
[313142394,1706800246666,-1000.72000898,0.00023,2]
[313142396,1706800246678,-577.04999999,0.00023,2]
[313142399,1706800246690,-5153.6,0.00023,2]
[313142401,1706800246701,-124039.84000003,0.00023,2]
[313142431,1706800252489,2463.27977983,0.00021848,7]
[313142432,1706800450579,200.0,0.000222,8]
[313142433,1706800452678,500.0,0.000223,8]
[313142434,1706800454812,700.0,0.000224,8]
[313142435,1706800457023,1000.0,0.000225,8]
[313142436,1706800529583,-943.91285857,0.00022596,2]
[313142437,1706800529605,-178.34454767,0.00022597,2]
[313142438,1706800529626,-525.29809218,0.00022598,2]
[313142439,1706800529648,-734.82,0.000226,2]
[313142440,1706800529671,-1200.0,0.000226,8]
[313142441,1706800529695,-200.0,0.000227,8]
[313142442,1706800529720,-150.0,0.0002277,2]
[313142443,1706800529742,-151.26804,0.0002277,2]
[313142444,1706800529766,-725.2,0.00022787,2]
[313142445,1706800529788,-718.47,0.00022794,2]
[313142446,1706800529811,-300.0,0.00022797,2]
[313142447,1706800529833,-422.65642048,0.00022798,2]
[313142448,1706800529855,-249.16724649,0.00022798,2]
[313142449,1706800529882,-1374.4190066,0.00022798,2]
[313142450,1706800529904,-2592.40656736,0.00022799,2]
[313142451,1706800529927,-100000.0,0.000228,2]
[313142452,1706800529949,-729.83,0.000228,2]
[313142453,1706800529975,-200.0,0.000228,8]
[313142454,1706800529998,-713.35,0.00022896,2]
[313142455,1706800530023,-735.88,0.00022898,2]
[313142456,1706800530050,-719.73,0.00022898,2]
[313142457,1706800530074,-737.7,0.00022898,2]
[313142458,1706800530097,-718.45,0.00022898,2]
[313142459,1706800530120,-7488.8382,0.00022898,2]
[313142460,1706800530142,-1000.0,0.00022898,2]
[313142461,1706800530166,-148585.0771,0.00022898,2]
[313142462,1706800530189,-9005.6248,0.00022899,2]
[313142463,1706800530214,-5662.50194349,0.00022899,2]
[313142464,1706800530235,-413.50295533,0.00022899,2]
[313142465,1706800530257,-177.84549311,0.00022899,2]
[313142466,1706800530280,-177.84549311,0.000229,2]
[313142467,1706800530305,-165.4403589,0.000229,2]
[313142468,1706800530327,-165.4403589,0.000229,2]
[313142469,1706800530349,-5000.0,0.000229,2]
[313142470,1706800530372,-165.4403589,0.000229,2]
[313142471,1706800530395,-365.13042829,0.000229,2]
[313142472,1706800530417,-6848.96852818,0.000229,2]
[313142473,1706800530438,-348.06890799,0.000229,2]
[313142474,1706800530463,-177.84549311,0.000229,2]
[313142475,1706800530485,-200.0,0.000229,8]
[313142476,1706800530507,-5013.17469583,0.00022996,2]
[313142477,1706800530529,-2375.41470862,0.00022997,2]
[313142478,1706800530552,-191642.93739689,0.00022998,2]
[313142479,1706800544825,174.11,0.00026731,120]
[313142480,1706800591130,-221.66172776,0.00022768,2]
[313142481,1706800591153,-19475.16536294,0.00022769,2]
[313142482,1706800591176,-723.94,0.00022769,2]
[313142483,1706800591198,-142264.7349203,0.0002277,2]
[313142484,1706800591222,-727.02,0.0002277,2]
[313142485,1706800591248,-592.91410413,0.00022898,2]
[313142486,1706800591273,-100000.0,0.00022898,2]
[313142487,1706800591295,-592.91410409,0.00022898,2]
[313142488,1706800591317,-592.91410409,0.00022899,2]
[313142489,1706800591339,-328.15897545,0.000229,2]
[313142490,1706800591360,-304.20615048,0.00022996,2]
[313142491,1706800591382,-195.67489377,0.00022996,2]
[313142492,1706800591403,-33980.69565699,0.00022996,2]
[313142493,1706800614303,160.06,0.00022352,2]
[313142494,1706800614899,-178.34454767,0.00022571,2]
[313142495,1706800614929,-200.0,0.00022572,2]
[313142496,1706800614950,-285.81614181,0.00022768,2]
[313142497,1706800614986,-177.94121261,0.00022768,2]
[313142498,1706800615011,-156.16813554,0.00022768,2]
[313142499,1706800615036,-724.04,0.00022871,2]
[313142500,1706800615060,-296.08247219,0.00022896,2]
[313142501,1706800615083,-264.52968327,0.00022896,2]
[313142502,1706800615107,-2479.08580125,0.00022897,2]
[313142503,1706800615129,-2214.95155014,0.00022897,2]
[313142504,1706800615165,-156.6053493,0.00022897,2]
[313142505,1706800615188,-171.7455595,0.00022898,2]
[313142506,1706800615211,-304.10598474,0.00022898,2]
[313142507,1706800615235,-592.91410409,0.00022899,2]
[313142508,1706800615258,-592.91410409,0.00022899,2]
[313142509,1706800615281,-592.91410409,0.00022899,2]
[313142510,1706800615304,-592.91410409,0.000229,2]
[313142511,1706800615325,-199.10754214,0.000229,2]
[313142512,1706800615348,-592.91410409,0.000229,2]
[313142513,1706800615375,-2206.75052407,0.00022995,2]
[313142514,1706800615398,-51142.53011411,0.00022996,2]
[313142515,1706800615419,-155.0,0.00022996,2]
[313142516,1706800615441,-155.0,0.00022996,2]
[313142517,1706800615463,-359.90801273,0.00022997,2]
[313142518,1706800615486,-3948.57940206,0.00022997,2]
[313142519,1706800615507,-502.41371894,0.00022997,2]
[313142520,1706800615531,-4635.5485652,0.00022997,2]
[313142521,1706800615553,-347.97763099,0.00022998,2]
[313142522,1706800615574,-531.93245674,0.00022998,2]
[313142523,1706800615611,-275241.26507455,0.00022998,2]
[313142524,1706800786323,191.28,0.00020755,2]
[313142525,1706800943666,500.0,0.00022119,3]
[313142526,1706800949826,1322.64310974,0.0002247,2]
[313142527,1706801049235,160.06,0.00022236,2]
[313142528,1706801078199,1215.03,0.00022125,2]
[313142529,1706801173449,840.0,0.00022102,2]
[313142530,1706801259408,181.71,0.00020113,2]
[313142531,1706801259730,181.71,0.00022377,2]
[313142532,1706801263273,163.79,0.00022031,2]
[313142540,1706801431423,-2145.46767011,0.00022566,2]
[313142541,1706801431434,-522.58129086,0.00022567,2]
[313142542,1706801431444,-206.35,0.00022588,2]
[313142543,1706801431455,-151.2590437,0.00022617,2]
[313142544,1706801431466,-712.45,0.00022706,2]
[313142545,1706801431476,-150.0,0.00022708,2]
[313142546,1706801431488,-151.2590437,0.00022711,2]
[313142547,1706801431497,-723.87,0.00022717,2]
[313142548,1706801431507,-718.8,0.00022717,2]
[313142549,1706801431516,-734.48,0.00022717,2]
[313142550,1706801431526,-711.45,0.00022717,2]
[313142551,1706801431536,-713.06,0.00022717,2]
[313142552,1706801431545,-716.68,0.00022717,2]
[313142553,1706801431555,-4840.42863382,0.00022718,2]
[313142554,1706801431564,-839.78871573,0.00022718,2]
[313142555,1706801431576,-1657.49128427,0.00022718,2]
[313142556,1706801431586,-499.99,0.00022719,2]
[313142557,1706801431596,-716.21,0.00022719,2]
[313142558,1706801431605,-713.38,0.00022719,2]
[313142559,1706801431615,-737.91,0.00022719,2]
[313142560,1706801431624,-715.31,0.00022719,2]
[313142561,1706801431634,-735.76,0.0002272,2]
[313142562,1706801431643,-256.3655,0.00022798,2]
[313142563,1706801431653,-36934.85764406,0.00022798,2]
[313142564,1706801431666,-1506.50744281,0.00022798,2]
[313142565,1706801431679,-2136.55,0.00022798,2]
[313142566,1706801431699,-324.4017795,0.00022798,2]
[313142567,1706801431721,-59097.68313363,0.00022798,2]